[Event "Budapest Chess Festival 2024"]
[Site "Budapest"]
[Date "2024.05.29"]
[Round "7.15"]
[White "Mihok, Oliver"]
[Black "Tadic, Stefan"]
[Result "1/2-1/2"]
[ECO "C27"]
[WhiteElo "2528"]
[BlackElo "2399"]
[Annotator "RC"]
[PlyCount "39"]
[EventDate "2024.05.20"]
[EventType "swiss"]
[EventCountry "HUN"]
[SourceTitle "playchess.com"]
[Source "ChessBase"]
[SourceQuality "1"]
[TimeControl "40/5400+30:1800+30"]

1. e4 {[%emt 0:00:33]} e5 {[%emt 0:00:47]} 2. Nc3 {[%emt 0:00:22]} Nf6 {[%emt 0:00:05]} 3. Bc4 {[%emt 0:00:04]} Nxe4 {[%emt 0:00:07]} 4. Qh5 {[%emt 0:00:41]} Nd6 {[%emt 0:00:06]} 5. Bb3 {[%emt 0:00:06]} Be7 {[%emt 0:00:23]} 6. Qxe5 {[%emt 0:00:55]} O-O {[%emt 0:00:06]} 7. Nf3 {[%emt 0:01:15]} Nc6 {[%emt 0:00:09]} 8. Qf4 {[%emt 0:02:51]} Na5 {[%emt 0:03:00]} 9. O-O {[%emt 0:03:07]} Nxb3 {[%emt 0:05:44]} 10. axb3 {[%emt 0:00:05]} Re8 {[%emt 0:01:39]} 11. d4 {[%emt 0:17:47]} b5 {[%emt 0:06:07]} 12. d5 {[%emt 0:03:37]} Bf6 {[%emt 0:05:16]} 13. Be3 {[%emt 0:10:09]} Bxc3 {[%emt 0:13:30]} 14. bxc3 {[%emt 0:00:03]} Re4 {[%emt 0:00:05]} 15. Qg5 {[%emt 0:10:48]} Qxg5 {[%emt 0:03:20]} 16. Nxg5 {[%emt 0:05:18]} Re5 {[%emt 0:00:41]} 17. Nf3 {[%emt 0:01:47]} Rxd5 {[%emt 0:01:30]} 18. Rxa7 {[%emt 0:02:22]} Rxa7 {[%emt 0:00:54]} 19. Bxa7 {[%emt 0:00:06]} Bb7 {[%emt 0:00:47]} 20. Re1 {[%emt 0:02:05]} 1/2-1/2

[Event "Budapest Chess Festival 2024"]
[Site "Budapest"]
[Date "2024.05.29"]
[Round "7.16"]
[White "Parkhov, Yair"]
[Black "Karacsonyi, Gellert"]
[Result "1/2-1/2"]
[ECO "D27"]
[WhiteElo "2510"]
[BlackElo "2389"]
[Annotator "RC"]
[PlyCount "61"]
[EventDate "2024.05.20"]
[EventType "swiss"]
[EventCountry "HUN"]
[SourceTitle "playchess.com"]
[Source "ChessBase"]
[SourceQuality "1"]
[TimeControl "40/5400+30:1800+30"]

1. d4 {[%emt 0:00:51]} d5 {[%emt 0:00:37]} 2. c4 {[%emt 0:00:03]} dxc4 {[%emt 0:00:07]} 3. Nf3 {[%emt 0:00:08]} Nf6 {[%emt 0:00:08]} 4. e3 {[%emt 0:00:06]} e6 {[%emt 0:00:10]} 5. Bxc4 {[%emt 0:00:06]} c5 {[%emt 0:00:16]} 6. O-O {[%emt 0:00:08]} a6 {[%emt 0:00:15]} 7. Re1 {[%emt 0:00:21]} Nc6 {[%emt 0:04:56]} 8. Nc3 {[%emt 0:03:33]} Be7 {[%emt 0:06:09]} 9. dxc5 {[%emt 0:14:26]} Qxd1 {[%emt 0:00:59]} 10. Rxd1 {[%emt 0:00:05]} Bxc5 {[%emt 0:00:20]} 11. b3 {[%emt 0:10:20]} b5 {[%emt 0:04:05]} 12. Bd3 {[%emt 0:05:38]} Bb7 {[%emt 0:10:13]} 13. Bb2 {[%emt 0:07:03]} O-O {[%emt 0:13:40]} 14. a4 {[%emt 0:08:01]} b4 {[%emt 0:06:27]} 15. Ne4 {[%emt 0:00:10]} Be7 {[%emt 0:00:32]} 16. Ned2 {[%emt 0:06:27]} Na5 {[%emt 0:05:35]} 17. Ne5 {[%emt 0:04:57]} Rfd8 {[%emt 0:02:10]} 18. Bc2 {[%emt 0:13:22]} Nd7 {[%emt 0:04:06]} 19. Ndc4 {[%emt 0:01:22]} Nxc4 {[%emt 0:00:13]} 20. Nxc4 {[%emt 0:00:04]} Bf6 {[%emt 0:03:10]} 21. Bxf6 {[%emt 0:02:03]} Nxf6 {[%emt 0:00:09]} 22. f3 {[%emt 0:10:16]} Nd5 {[%emt 0:11:59]} 23. e4 {[%emt 0:03:28]} Nc3 {[%emt 0:00:11]} 24. Rxd8+ {[%emt 0:01:07]} Rxd8 {[%emt 0:00:03]} 25. Kf2 {[%emt 0:00:33]} f6 {[%emt 0:06:29]} 26. Ke3 {[%emt 0:00:10]} e5 {[%emt 0:03:37]} 27. Bd3 {[%emt 0:02:33]} Bc8 {[%emt 0:06:17]} 28. Na5 {[%emt 0:05:12]} Rd6 {[%emt 0:00:56]} 29. Nc4 {[%emt 0:00:05]} Rd8 {[%emt 0:00:04]} 30. Na5 {[%emt 0:00:32]} Rd6 {[%emt 0:00:05]} 31. Nc4 {[%emt 0:00:21]} 1/2-1/2

[Event "Budapest Chess Festival 2024"]
[Site "Budapest"]
[Date "2024.05.29"]
[Round "7.17"]
[White "Vetoshko, Volodymyr"]
[Black "Niedbala, Bartlomiej"]
[Result "1/2-1/2"]
[ECO "A29"]
[WhiteElo "2505"]
[BlackElo "2399"]
[Annotator "TA"]
[PlyCount "39"]
[EventDate "2024.05.20"]
[EventType "swiss"]
[EventCountry "HUN"]
[SourceTitle "playchess.com"]
[Source "ChessBase"]
[SourceQuality "1"]
[TimeControl "40/5400+30:1800+30"]

{[%evp 15,39,-7,12,4,8,0,0,17,31,18,33,19,21,19,17,0,0,8,8,9,15,8,16,0,0,0]} 1. c4 {[%emt 0:03:03]} e5 {[%emt 0:01:25]} 2. Nc3 {[%emt 0:00:06]} Nf6 {[%emt 0:00:04]} 3. Nf3 {[%emt 0:00:07]} Nc6 {[%emt 0:00:04]} 4. g3 {[%emt 0:00:06]} d5 {[%emt 0:02:53]} 5. cxd5 {[%emt 0:00:09]} Nxd5 {[%emt 0:00:06]} 6. Bg2 {[%emt 0:00:05]} Bc5 {[%emt 0:00:08]} 7. O-O {[%emt 0:01:21]} O-O {[%emt 0:02:13]} 8. d3 {[%emt 0:00:04]} h6 {[%emt 0:00:46]} 9. Nxd5 {[%emt 0:01:01]} Qxd5 {[%emt 0:01:11]} 10. Bd2 {[%emt 0:00:14]} Qd6 {[%emt 0:13:18]} 11. Bc3 {[%emt 0:17:30][%cal Of3e5]} Nd4 {[%emt 0:20:35]} 12. Nd2 {[%emt 0:14:19]} Bg4 {[%emt 0:11:37]} 13. Re1 {[%emt 0:11:32][%cal Od2e4]} c6 {[%emt 0:06:03] The position is equal.} 14. h3 {[%emt 0:06:10]} Bf5 {[%emt 0:17:28]} 15. g4 {[%emt 0:04:34]} Bh7 {[%emt 0:02:25]} 16. Nc4 {[%emt 0:00:27]} Qe6 {[%emt 0:04:41]} 17. e3 {[%emt 0:01:01]} Nb5 {[%emt 0:00:03]} 18. Bxe5 {[%emt 0:00:48] Strongly threatening Qb3.} Rad8 {[%emt 0:01:32]} 19. Bf1 {[%emt 0:00:45]} Bb4 {[%emt 0:01:06]} 20. d4 {[%emt 0:11:44] An uneventful encounter.   Weighted Error Value: White=0.06 (flawless) /Black=0.05 (flawless) .  OK:         	White=7     	Black=6      Best:        	---       	Black=1} 1/2-1/2

[Event "Budapest Chess Festival 2024"]
[Site "Budapest"]
[Date "2024.05.29"]
[Round "7.18"]
[White "Arhan, Chethan Anand"]
[Black "Csonka, Balazs"]
[Result "1/2-1/2"]
[ECO "B52"]
[WhiteElo "2366"]
[BlackElo "2480"]
[Annotator "TA"]
[PlyCount "30"]
[EventDate "2024.05.20"]
[EventType "swiss"]
[EventCountry "HUN"]
[SourceTitle "playchess.com"]
[Source "ChessBase"]
[SourceQuality "1"]
[TimeControl "40/5400+30:1800+30"]

{[%evp 12,30,22,15,29,13,13,0,0,0,0,-6,14,15,16,12,20,22,38,37,74]} 1. e4 {[%emt 0:00:33]} c5 {[%emt 0:00:37]} 2. Nf3 {[%emt 0:00:06]} d6 {[%emt 0:00:05]} 3. Bb5+ {[%emt 0:00:04]} Bd7 {[%emt 0:05:25]} 4. Bxd7+ {[%emt 0:00:06]} Nxd7 {[%emt 0:00:04]} 5. O-O {[%emt 0:00:06]} Ngf6 {[%emt 0:00:08]} 6. Qe2 {[%emt 0:00:17]} e6 {[%emt 0:00:49]} 7. b3 {[%emt 0:04:34]} g6 {[%emt 0:16:07]} 8. Bb2 {[%emt 0:01:13]} Bg7 {[%emt 0:00:10]} 9. c3 {[%emt 0:08:44]} e5 {[%emt 0:13:58] The position is equal.} 10. d4 {[%emt 0:01:34]} exd4 {[%emt 0:09:11]} 11. cxd4 {[%emt 0:00:05] [#] e5 would now be deadly.} cxd4 {[%emt 0:00:07]} 12. Bxd4 {[%emt 0:08:12]} O-O {[%emt 0:02:03]} 13. Nc3 {[%emt 0:01:29]} Re8 {[%emt 0:03:27][%cal Of6e4]} 14. Rad1 {[%emt 0:05:27]} Qa5 {[%emt 0:17:48]} 15. Qb2 {[%emt 0:20:01]} Qh5 {[%emt 0:00:14] Weighted Error Value: White=0.05 (flawless) /Black=0.06 (flawless) .  Inaccurate:     	---       	Black=1      OK:         	White=3     	Black=4} 1/2-1/2

[Event "Budapest Chess Festival 2024"]
[Site "Budapest"]
[Date "2024.05.29"]
[Round "7.19"]
[White "Palczert, Matyas"]
[Black "Tzidkiya, Yeshaayahu"]
[Result "0-1"]
[ECO "B72"]
[WhiteElo "2332"]
[BlackElo "2468"]
[Annotator "TA"]
[PlyCount "66"]
[EventDate "2024.05.20"]
[EventType "swiss"]
[EventCountry "HUN"]
[SourceTitle "playchess.com"]
[Source "ChessBase"]
[SourceQuality "1"]
[TimeControl "40/5400+30:1800+30"]

{[%evp 10,66,49,33,64,52,50,41,32,27,49,40,46,29,36,0,46,27,23,25,45,34,46,-156,-162,-149,-156,-152,-161,-157,-162,-164,-154,-284,-268,-321,-320,-289,-227,-560,-566,-552,-549,-566,-566,-540,-515,-515,-539,-1135,-1074,-1062,-1114,-1391,-1341,-1979,-1177,-2288,-1167]} 1. e4 {[%emt 0:02:37]} c5 {[%emt 0:00:36]} 2. Nf3 {[%emt 0:00:08]} d6 {[%emt 0:00:04]} 3. d4 {[%emt 0:00:07]} cxd4 {[%emt 0:00:14]} 4. Nxd4 {[%emt 0:00:08]} Nf6 {[%emt 0:00:13]} 5. Nc3 {[%emt 0:00:12]} g6 {[%emt 0:00:18]} 6. Be3 {[%emt 0:00:11]} Nc6 {[%emt 0:00:21]} 7. f3 $1 {[%emt 0:00:18] Dodges Ng4} h5 {[%emt 0:00:06]} 8. Bc4 {[%emt 0:01:41]} Bd7 {[%emt 0:00:09] White is slightly better.} 9. Nxc6 {[%emt 0:02:03]} bxc6 {[%emt 0:04:11]} 10. Qd2 {[%emt 0:01:54]} Bg7 {[%emt 0:03:03]} 11. O-O-O {[%emt 0:01:52]} Qa5 {[%emt 0:04:17]} 12. Kb1 {[%emt 0:05:26]} (12. Rhe1 $5) 12... Rb8 {[%emt 0:00:23][%cal Of6e4] aiming for ...Nxe4!} 13. Bb3 {[%emt 0:01:41]} Be6 {[%emt 0:10:20]} 14. Rhe1 {[%emt 0:07:39][%cal Oe4e5]} Nd7 {[%emt 0:21:50] [#]} 15. Nd5 $1 {[%emt 0:23:39]} Qd8 {[%emt 0:13:07] [#]} (15... Qxd2 16. Nc7+) 16. Bg5 $2 {[%emt 0:06:17]} cxd5 $17 {[%emt 0:14:17] White is on the road to losing.} 17. exd5 {[%emt 0:00:21]} Bf5 {[%emt 0:00:47]} 18. Bxe7 {[%emt 0:05:13]} Qxe7 {[%emt 0:00:05]} 19. Rxe7+ {[%emt 0:00:15]} Kxe7 {[%emt 0:00:02]} 20. Qe2+ {[%emt 0:05:43] White is weak on the dark squares} Kf8 {[%emt 0:03:18] ...Nc5 is the strong threat.} 21. Re1 {[%emt 0:01:01] [#]} (21. g4 $17 {might work better.} hxg4 22. fxg4) 21... Be5 $1 $19 {[%emt 0:01:46][%cal Of8g7] Active counter play!} 22. h4 {[%emt 0:13:47]} Rb4 {[%emt 0:02:06][%cal Of8g7]} 23. Ka1 {[%emt 0:02:49]} Nc5 {[%emt 0:08:17]} 24. Qf2 $2 {[%emt 0:01:15]} (24. c3 {nothing else works.} Rxh4 (24... Nxb3+ $2 25. axb3 Rxh4 26. Qf2 $19) 25. Qf2) 24... Kg7 {[%emt 0:01:09] Black is clearly winning.} 25. Rxe5 {[%emt 0:01:00] Threatens to win with Re1.} Nxb3+ {[%emt 0:00:06]} 26. axb3 {[%emt 0:00:31]} dxe5 {[%emt 0:00:04]} 27. Qe1 {[%emt 0:00:12]} Rhb8 {[%emt 0:06:55]} 28. Qxe5+ {[%emt 0:00:33]} Kg8 {[%emt 0:00:03]} 29. Qc7 {[%emt 0:03:53]} R4b7 {[%emt 0:00:53]} 30. Qc6 {[%emt 0:04:39]} Rb6 {[%emt 0:00:08]} 31. Qc7 {[%emt 0:00:49]} Rc8 {[%emt 0:00:14]} 32. Qxa7 {[%emt 0:00:05]} Rbb8 {[%emt 0:00:04]} 33. Kb1 {[%emt 0:00:10] [#]} Rxc2 $1 {[%emt 0:00:37] Weighted Error Value: White=1.03/Black=0.21 (precise) .  Mistake:       	White=3     	---        Inaccurate:     	White=1     	---        OK:         	White=6     	Black=11     Best:        	---       	Black=4      Strong:       	White=1     	Black=1} 0-1

[Event "Budapest Chess Festival 2024"]
[Site "Budapest"]
[Date "2024.05.29"]
[Round "7.20"]
[White "Stefansson, Vignir Vatnar"]
[Black "Chubakov, Sultan"]
[Result "1-0"]
[ECO "D11"]
[WhiteElo "2463"]
[BlackElo "2304"]
[Annotator "RC"]
[PlyCount "68"]
[EventDate "2024.05.20"]
[EventType "swiss"]
[EventCountry "HUN"]
[SourceTitle "playchess.com"]
[Source "ChessBase"]
[SourceQuality "1"]
[TimeControl "40/5400+30:1800+30"]

1. d4 {[%emt 0:04:18]} d5 {[%emt 0:00:32]} 2. c4 {[%emt 0:00:07]} c6 {[%emt 0:00:03]} 3. Nf3 {[%emt 0:00:06]} Nf6 {[%emt 0:00:06]} 4. g3 {[%emt 0:00:43]} Bf5 {[%emt 0:00:16]} 5. Nc3 {[%emt 0:00:07]} e6 {[%emt 0:00:37]} 6. Nh4 {[%emt 0:00:04]} Be4 {[%emt 0:01:10]} 7. f3 {[%emt 0:00:23]} Bg6 {[%emt 0:00:10]} 8. Nxg6 {[%emt 0:02:05]} hxg6 {[%emt 0:00:07]} 9. Qb3 {[%emt 0:00:06]} Qb6 {[%emt 0:06:18]} 10. c5 {[%emt 0:00:05]} Qc7 {[%emt 0:00:07]} 11. e4 {[%emt 0:01:42]} Be7 {[%emt 0:10:12]} 12. Bf4 {[%emt 0:10:50]} Qc8 {[%emt 0:06:38]} 13. Bd6 {[%emt 0:00:51]} Nfd7 {[%emt 0:19:53]} 14. O-O-O {[%emt 0:03:49]} Bxd6 {[%emt 0:07:08]} 15. cxd6 {[%emt 0:00:15]} O-O {[%emt 0:02:04]} 16. Kb1 {[%emt 0:04:52]} a5 {[%emt 0:03:23]} 17. Rc1 {[%emt 0:02:48]} Nf6 {[%emt 0:09:54]} 18. Bh3 {[%emt 0:17:03]} g5 {[%emt 0:11:26]} 19. e5 {[%emt 0:06:06]} Nfd7 {[%emt 0:01:41]} 20. f4 {[%emt 0:00:35]} g6 {[%emt 0:02:14]} 21. fxg5 {[%emt 0:02:26]} c5 {[%emt 0:01:14]} 22. dxc5 {[%emt 0:08:15]} Qxc5 {[%emt 0:09:04]} 23. Rhe1 {[%emt 0:03:12]} Qb4 {[%emt 0:04:39]} 24. Qc2 {[%emt 0:00:16]} Kg7 {[%emt 0:01:30]} 25. Qf2 {[%emt 0:00:07]} Qb6 {[%emt 0:01:19]} 26. Qf4 {[%emt 0:03:41]} Nc5 {[%emt 0:00:51]} 27. Qf6+ {[%emt 0:02:39]} Kh7 {[%emt 0:00:27]} 28. Nxd5 {[%emt 0:05:33]} exd5 {[%emt 0:00:20]} 29. e6 {[%emt 0:00:04]} Nxe6 {[%emt 0:00:25]} 30. Rxe6 {[%emt 0:01:48]} Nd7 {[%emt 0:00:30]} 31. Qe7 {[%emt 0:00:04]} Rad8 {[%emt 0:01:02]} 32. Rf1 {[%emt 0:02:49]} Kg8 {[%emt 0:00:36]} 33. Rxf7 {[%emt 0:00:52]} Qg1+ {[%emt 0:00:27]} 34. Bf1 {[%emt 0:00:32]} Nf6 {[%emt 0:00:31]} 1-0

[Event "Budapest Chess Festival 2024"]
[Site "Budapest"]
[Date "2024.05.30"]
[Round "8.1"]
[White "Ivanisevic, Ivan"]
[Black "Sokolovsky, Yahli"]
[Result "1/2-1/2"]
[ECO "D50"]
[WhiteElo "2537"]
[BlackElo "2484"]
[Annotator "TA"]
[PlyCount "49"]
[EventDate "2024.05.20"]
[EventType "swiss"]
[EventCountry "HUN"]
[SourceTitle "playchess.com"]
[Source "ChessBase"]
[SourceQuality "1"]
[TimeControl "40/5400+30:1800+30"]

{[%evp 9,49,15,16,1,-15,-19,-19,-13,0,0,-6,-7,0,9,6,18,15,11,30,0,0,-14,-12,-33,-25,-36,-8,-11,-18,0,0,0,0,0,0,0,0,0,0,0,0,0]} 1. d4 {[%emt 0:00:33]} Nf6 {[%emt 0:00:35]} 2. c4 {[%emt 0:00:05]} e6 {[%emt 0:00:04]} 3. Nc3 {[%emt 0:01:19]} d5 {[%emt 0:00:05]} 4. Bg5 {[%emt 0:00:33]} dxc4 {[%emt 0:00:22]} 5. e4 {[%emt 0:11:43]} c5 {[%emt 0:00:06]} 6. d5 {[%emt 0:00:30]} Be7 {[%emt 0:00:05][%cal Of6d5]} 7. Bxf6 {[%emt 0:05:35]} Bxf6 {[%emt 0:00:08]} 8. Bxc4 {[%emt 0:00:03]} exd5 {[%emt 0:05:53]} 9. Bxd5 {[%emt 0:01:28]} Nc6 {[%emt 0:08:25]} 10. Nge2 {[%emt 0:01:23]} Nb4 {[%emt 0:05:48]} 11. O-O {[%emt 0:00:43]} Nxd5 {[%emt 0:02:45]} 12. Nxd5 {[%emt 0:00:38]} O-O {[%emt 0:09:11]} 13. Qc2 {[%emt 0:00:36]} Bg4 {[%emt 0:09:36]} 14. Nxf6+ {[%emt 0:10:22]} Qxf6 {[%emt 0:00:05]} 15. Ng3 {[%emt 0:00:05]} b6 {[%emt 0:11:11]} 16. f4 {[%emt 0:13:06]} Qd4+ {[%emt 0:03:31]} 17. Qf2 {[%emt 0:00:05]} Qxf2+ {[%emt 0:02:51]} 18. Kxf2 {[%emt 0:04:23] The position is equal.} Rfd8 {[%emt 0:00:09]} 19. Ke3 {[%emt 0:03:34] Against Rd2} Be6 20. b3 f6 {[%emt 0:01:53]} 21. Rfd1 {[%emt 0:01:11]} Kf8 {[%emt 0:01:36]} 22. Ne2 {[%emt 0:05:24]} Bg4 {[%emt 0:10:33]} 23. h3 {[%emt 0:03:09]} Bxe2 {[%emt 0:00:06]} 24. Kxe2 {[%emt 0:00:03]} Ke7 {[%emt 0:00:14]} 25. Ke3 {[%emt 0:00:34] Weighted Error Value: White=0.06 (flawless) /Black=0.04 (flawless) .  Inaccurate:     	White=1     	Black=1      OK:         	White=8     	Black=9} 1/2-1/2

[Event "Budapest Chess Festival 2024"]
[Site "Budapest"]
[Date "2024.05.30"]
[Round "8.3"]
[White "Juhasz, Agoston"]
[Black "Aryan Chopra"]
[Result "0-1"]
[ECO "C50"]
[WhiteElo "2431"]
[BlackElo "2641"]
[Annotator "TA"]
[PlyCount "60"]
[EventDate "2024.05.20"]
[EventType "swiss"]
[EventCountry "HUN"]
[SourceTitle "playchess.com"]
[Source "ChessBase"]
[SourceQuality "1"]
[TimeControl "40/5400+30:1800+30"]

{[%evp 12,60,20,0,27,26,27,0,0,0,13,6,6,0,0,0,15,14,14,4,41,42,50,35,106,27,24,22,28,27,61,61,80,71,69,48,61,50,63,68,53,75,87,68,146,-293,-293,-295,-281,-436,-431]} 1. e4 {[%emt 0:00:32]} e5 {[%emt 0:00:36]} 2. Nf3 {[%emt 0:00:06]} Nc6 {[%emt 0:00:03]} 3. Bc4 {[%emt 0:00:16]} Bc5 {[%emt 0:01:08]} 4. d3 {[%emt 0:00:18]} Nf6 {[%emt 0:00:21]} 5. Nc3 {[%emt 0:00:06]} h6 {[%emt 0:02:02]} 6. a3 {[%emt 0:00:20]} d6 {[%emt 0:01:17]} 7. h3 {[%emt 0:09:33]} Be6 {[%emt 0:01:12]} 8. Bxe6 {[%emt 0:03:48]} fxe6 {[%emt 0:00:06]} 9. Be3 {[%emt 0:00:09]} Bxe3 {[%emt 0:03:02] The position is equal.} 10. fxe3 {[%emt 0:00:06]} d5 {[%emt 0:00:09]} 11. O-O {[%emt 0:11:55]} O-O {[%emt 0:07:41]} 12. exd5 {[%emt 0:07:19]} exd5 {[%emt 0:05:00]} 13. e4 {[%emt 0:01:48]} d4 {[%emt 0:07:40]} 14. Ne2 {[%emt 0:00:45][%cal Bc3e2,Be2g3,Bg3f5][%mdl 32]} Qd6 {[%emt 0:01:44]} 15. Ng3 {[%emt 0:07:12]} Kh7 {[%emt 0:08:28]} 16. Nf5 {[%emt 0:01:36]} Qe6 {[%emt 0:11:04]} 17. Qe1 {[%emt 0:01:18]} Nh5 {[%emt 0:08:19]} (17... Nd7 $14) 18. c3 {[%emt 0:16:48]} (18. Qh4 $16 Qe8 19. g4) 18... dxc3 $11 {[%emt 0:01:52]} 19. bxc3 {[%emt 0:00:15]} g6 {[%emt 0:08:16]} 20. Ne3 {[%emt 0:06:36]} Nf4 {[%emt 0:05:23]} 21. Ng4 {[%emt 0:02:07] Strongly threatening Qh4.} Qe7 {[%emt 0:04:53][%cal Oa8d8]} 22. d4 {[%emt 0:03:28]} exd4 {[%emt 0:01:09]} 23. cxd4 {[%emt 0:00:10]} h5 {[%emt 0:02:00]} 24. Ne3 {[%emt 0:06:41]} Rad8 {[%emt 0:00:42] Prevents Nd5.} 25. Rd1 {[%emt 0:00:13]} Kg8 {[%emt 0:02:38]} 26. Nc2 {[%emt 0:02:18]} Rde8 {[%emt 0:00:59]} 27. e5 {[%emt 0:00:24]} Qd8 {[%emt 0:01:30] [#]} (27... Nd8 $14) 28. d5 $2 {[%emt 0:02:17][%mdl 8192] [#]} Nxe5 $1 $19 {[%emt 0:01:07][%mdl 512]} 29. Nxe5 {[%emt 0:10:25] Nd4 would now be deadly.} Qg5 {[%emt 0:00:10][%csl Gf4][%cal Rg5g2]} (29... Nxd5 $2 {loses.} 30. Rxf8+ Rxf8 31. Qe4 $18 (31. Nxg6 Rf7 $18)) 30. Rxf4 {[%emt 0:04:04]} (30. Ne3 $142 Rxe5 (30... Nxh3+ $2 31. Kh1 $19) 31. h4 Nh3+ 32. Kh2 Rxf1 (32... Qxe3 $2 33. gxh3 Rxf1 34. Qxe3 $19) 33. hxg5 Rxe1 34. Rxe1) 30... Qxf4 {[%emt 0:01:10] Weighted Error Value: White=0.48/Black=0.15 (very precise) .  Loses game:     	White=1     	---        Mistake:       	White=2     	Black=2      Inaccurate:     	---       	Black=2      OK:         	White=11    	Black=6      Best:        	White=1     	Black=1      Brilliant:      	---       	Black=1} 0-1

[Event "Budapest Chess Festival 2024"]
[Site "Budapest"]
[Date "2024.05.30"]
[Round "8.4"]
[White "Kadric, Denis"]
[Black "Haring, Filip"]
[Result "1-0"]
[ECO "C50"]
[WhiteElo "2558"]
[BlackElo "2484"]
[Annotator "TA"]
[PlyCount "99"]
[EventDate "2024.05.20"]
[EventType "swiss"]
[EventCountry "HUN"]
[SourceTitle "playchess.com"]
[Source "ChessBase"]
[SourceQuality "1"]
[TimeControl "40/5400+30:1800+30"]

{[%evp 23,99,31,28,6,12,18,12,24,18,20,31,29,47,45,58,47,57,56,71,35,45,51,56,35,39,33,31,17,29,0,14,16,143,137,143,142,138,146,131,103,127,130,152,88,94,102,300,295,308,312,302,280,292,290,368,364,350,324,358,312,279,230,342,342,325,284,340,331,483,460,678,690,685,668,655,630,723,701]} 1. e4 {[%emt 0:00:33]} e5 {[%emt 0:00:56]} 2. Nf3 {[%emt 0:00:05]} Nc6 {[%emt 0:00:07]} 3. Bc4 {[%emt 0:00:05]} Nf6 {[%emt 0:00:24]} 4. d3 {[%emt 0:00:02]} Bc5 {[%emt 0:00:26]} 5. c3 {[%emt 0:00:06]} d6 {[%emt 0:00:09]} 6. Bg5 {[%emt 0:00:05]} h6 {[%emt 0:00:32]} 7. Bh4 {[%emt 0:00:03]} Bb6 {[%emt 0:02:36] C54: Giuoco Piano: 4 c3 Nf6, main lines with 5 d4 and 5 d3.} 8. a4 {[%emt 0:00:16]} a5 {[%emt 0:01:08]} 9. Nbd2 {[%emt 0:00:09]} g5 {[%emt 0:00:44]} 10. Bg3 {[%emt 0:00:03]} O-O {[%emt 0:07:22]} 11. h3 $146 {[%emt 0:01:22]} ({Predecessor:} 11. O-O Bg4 12. Re1 Ne7 13. Qc2 Ng6 14. d4 Qe7 15. Qd3 Nh5 16. h3 Bd7 17. Nf1 {1-0 Grajczak,A (1880)-Hury,T (1700) Warsaw Najdorf Memorial op-B 2023 (1)}) 11... Kg7 {[%emt 0:14:30]} 12. Qe2 {[%emt 0:00:53]} Qe8 {[%emt 0:03:53]} 13. Bb5 {[%emt 0:08:18]} Nh5 {[%emt 0:13:07]} 14. Bh2 {[%emt 0:00:48]} f5 {[%emt 0:01:57]} 15. exf5 Nf4 {[%emt 0:02:34]} 16. Bxf4 {[%emt 0:21:01]} exf4 {[%emt 0:00:00]} 17. Nc4 {[%emt 0:04:25]} Bxf5 18. Nxb6 Qxe2+ {[%emt 0:10:56]} 19. Kxe2 {[%emt 0:00:33]} cxb6 {[%emt 0:00:06]} 20. Kd2 {[%emt 0:07:07]} Kf6 {[%emt 0:12:39]} 21. Rhe1 Ne5 22. Nd4 {[%emt 0:02:37]} Bg6 {[%emt 0:01:06]} 23. f3 {[%emt 0:01:10]} Rac8 {[%emt 0:04:15]} 24. Re2 {[%emt 0:03:35]} Bf7 {[%emt 0:01:43]} 25. Rae1 {[%emt 0:06:43]} Rc7 {[%emt 0:10:34]} 26. Nc2 {[%emt 0:01:38]} h5 {[%emt 0:01:31]} 27. Na3 {[%emt 0:01:55]} g4 (27... Re7 $11 {keeps the balance.}) 28. d4 $16 {[%emt 0:02:57]} Ng6 {[%emt 0:02:56]} 29. hxg4 {[%emt 0:02:07]} hxg4 {[%emt 0:00:02]} 30. fxg4 {[%emt 0:05:12]} Kg5 {[%emt 0:01:13]} 31. Rf2 {[%emt 0:04:35]} Bd5 {[%emt 0:04:23]} 32. Be2 {[%emt 0:09:20]} Re7 {[%emt 0:02:02] [#]} 33. Bf3 {[%emt 0:00:48]} (33. Nb5 $142 $1) 33... Rxe1 $16 {[%emt 0:00:15]} 34. Kxe1 {[%emt 0:00:01]} Bxf3 $2 {[%emt 0:02:52]} (34... Bb3 $16) 35. gxf3 $18 (35. Rxf3 Nh4 36. Rh3 Nxg2+ 37. Kf2 Kxg4 $11) 35... d5 36. Rh2 {[%emt 0:03:10]} Nh4 {[%emt 0:00:31]} 37. Kf2 {[%emt 0:00:02]} Re8 {[%emt 0:00:29]} 38. Nc2 {[%emt 0:00:48]} b5 39. axb5 {[%emt 0:00:48]} Re6 {[%emt 0:01:29]} 40. Rh1 {[%emt 0:00:00]} Rb6 {[%emt 0:00:00]} 41. Ne1 Rxb5 {[%emt 0:01:53]} 42. Nd3 {[%emt 0:09:22]} Rb6 {[%emt 0:03:42]} (42... Rb3 $142 43. Ra1 b6) 43. Re1 $18 {[%emt 0:02:13]} Ng6 {[%emt 0:01:04]} 44. Re8 {[%emt 0:00:52]} Kf6 {[%emt 0:01:55]} 45. Rd8 Ke6 {[%emt 0:05:01]} (45... Rb5 $142 46. Rd6+ Kf7) 46. Nc5+ $18 {[%emt 0:02:07]} Kf6 {[%emt 0:02:20]} (46... Kf7 $142 47. Rd7+ (47. Rxd5 Rxb2+ 48. Kf1 b5 $14) 47... Ne7 48. Rxb7 (48. Nxb7 $2 {is the wrong capture.} Rxb2+ 49. Kg1 a4 $19) 48... Rxb7 49. Nxb7 Nc6) 47. Nd7+ $18 {[%emt 0:00:27]} ({Less strong is} 47. Rxd5 Rxb2+ 48. Ke1 Nh4 $16) 47... Ke7 {[%emt 0:00:05]} 48. Nxb6 {[%emt 0:00:02]} Kxd8 {[%emt 0:00:04]} 49. Nxd5 {[%emt 0:00:00]} b5 {[%emt 0:00:10]} 50. Ke2 1-0